Cogmind - Beta 10.2 @@@ ROGUE MODE // 2021.04.14 @ 14:14:06 Player: Midas Result: Destroyed by G-34 Mercenary with Small Laser Performance ------------- Evolutions (1) 500 Regions Visited (3) 600 Robots Destroyed (21) 105 Value Destroyed (627) 627 Prototype IDs (1) 20 Alien Tech Used (0) 0 Bonus (0) 0 TOTAL SCORE: 1852 Bonus ------- None Cogmind --------- Core Integrity 0/400 Matter 226/300 Energy 85/100 System Corruption 0% Temperature Cool (9) Movement Flying (29) Location -9/Storage Parts ------- > --- POWER (2) -------- (None) > --- PROPULSION (3) --- Improved Flight Unit Improved Flight Unit Improved Flight Unit > --- UTILITY (2) ------ (None) > --- WEAPON (2) ------- Mace > --- INVENTORY (4) ---- (None) Peak State ------------ > --- POWER ------------ Ion Engine Light Nuclear Core > --- PROPULSION ------- Improved Flight Unit Improved Flight Unit Improved Flight Unit > --- UTILITY ---------- (None) > --- WEAPON ----------- Shotgun Mace > --- INVENTORY -------- Ion Engine Improved Flight Unit Improved Flight Unit [Rating: 17] Favorites ----------- Power Ion Engine Engine Ion Engine Power Core Light Nuclear Core Propulsion Light Treads Treads Light Treads Leg Aluminum Leg Wheel Wheel Hover Unit Improved Hover Unit Flight Unit Improved Flight Unit Utility Small Storage Unit Device ECM Suite Storage Small Storage Unit Protection Light Armor Plating Weapon Mace Energy Gun EM Pulse Gun Ballistic Gun Light Assault Rifle Impact Weapon Mace Build | -11 -10 -9 -9 ------- Run | Scr Mat Mat Sto Slots Evolved 2 | . . 2 . Power 1 | . . 1 . Propulsion 1 | . . 1 . Utility . | . . . . Weapon . | . . . . Parts Attached 32 | . 11 14 7 Power 9 | . 3 3 3 Engine 8 | . 3 2 3 Core 1 | . . 1 . Reactor . | . . . . Propulsion 13 | . 3 8 2 Treads 3 | . 2 1 . Leg 1 | . 1 . . Wheel 1 | . . 1 . Hover 3 | . . 3 . Flight 5 | . . 3 2 Utility 3 | . 1 1 1 Device 1 | . 1 . . Storage 1 | . . 1 . Processor . | . . . . Hackware . | . . . . Protection 1 | . . . 1 Artifact . | . . . . Weapon 7 | . 4 2 1 Energy Gun 3 | . 3 . . Energy Cannon . | . . . . Ballistic Gun 3 | . 1 1 1 Ballistic Cannon . | . . . . Launcher . | . . . . Special Weapon . | . . . . Impact Weapon 1 | . . 1 . Slashing Weapon . | . . . . Piercing Weapon . | . . . . Special Melee Weapon . | . . . . Unidentified Prototypes 1 | . . 1 . Parts Lost 14 | . 4 2 8 Power 6 | . 1 . 5 Propulsion 3 | . 1 1 1 Utility 2 | . . 1 1 Weapon 3 | . 2 . 1 Highest Loss Streak 8 | . 3 1 8 Average Slot Usage (%) 72 | . 76 70 68 Engine 13 | . 11 14 14 Treads 6 | . 5 11 . Leg 6 | . 16 . . Hover 5 | . . 12 . Flight 6 | . . 2 29 Device 6 | . 10 6 . Storage 10 | . 14 10 . Energy Gun 2 | . 6 . . Ballistic Gun 7 | . 11 3 7 Impact Weapon 5 | . . 7 11 Naked Turns . | . . . . Heaviest Build 23 | 12 13 23 18 Greatest Support 40 | 20 40 40 18 Greatest Overweight (x) 3 | . 1 3 1 Average Overweight (x) . | . . . . Largest Inventory Capacity 8 | . 6 8 4 Average Capacity 5 | . 6 6 4 Most Carried 6 | . 6 5 4 Average Carried 3 | . 4 2 1 Final Capacity 6 | 6 6 4 4 Final Carried 6 | 6 2 4 . Class Distribution -------------------- 82% | Mutant 17% | Sprinter Dominant Class ---------------- Mutant | -10/Materials Mutant | -9/Materials Sprinter | -9/Storage Resources | -11 -10 -9 -9 ----------- Run | Scr Mat Mat Sto Matter Collected 624 | 200 111 122 191 Remotely . | . . . . Salvage Created 733 | . 222 269 242 Parts 47 | . 11 18 18 Haulers Intercepted 1 | . . 1 . Recyclers Shooed . | . . . . Parts Field Recycled . | . . . . Retrieved Matter . | . . . . Parts Self-Destructed . | . . . . Prevented . | . . . . Kills | -11 -10 -9 -9 ------- Run | Scr Mat Mat Sto Combat Hostiles Destroyed 19 | . 5 6 8 Melee 2 | . . 1 1 Guns 16 | . 5 4 7 Classes Destroyed 5 | . 3 2 . Hauler 1 | . . 1 . Watcher 1 | . 1 . . Swarmer 5 | . 1 . 4 Grunt 10 | . 4 5 1 Sentry 4 | . . 1 3 Best Kill Streak 7 | . 2 5 7 Combat Bots Only 7 | . 2 4 7 Max Kills in Single Turn 1 | . 1 1 1 Gunslinging . | . . . . Exploded . | . . . . Melee 1 | . . 1 1 Uniques/NPCs Destroyed . | . . . . Combat | -11 -10 -9 -9 -------- Run | Scr Mat Mat Sto Damage Taken 1912 | . 735 254 923 Core 577 | . 171 128 278 Absorbed by Shields . | . . . . Core Remaining (%) 65 | 100 31 . . Volleys Fired 91 | . 41 20 30 Largest 2 | . 2 1 1 Hottest 70 | . 70 23 23 Shots Fired 110 | . 60 20 30 Gun 110 | . 60 20 30 Cannon . | . . . . Launcher . | . . . . Special . | . . . . Kinetic 91 | . 41 20 30 Thermal 8 | . 8 . . Explosive . | . . . . Electromagnetic 11 | . 11 . . Robot Hit Streak 10 | . 7 10 9 Robot Miss Streak 3 | . 3 2 3 Penetration Max . | . . . . Secondary Targets 2 | . 2 . . Max Gunslinging Chain 1 | . 1 . . Shots Hit Robots 96 | . 39 25 32 Core Hits 44 | . 20 13 11 Critical Hits 1 | . . 1 . Critical Kills . | . . . . Critical Parts Destroyed 1 | . . 1 . Melee Attacks 20 | . . 10 10 Impact 20 | . . 10 10 Slashing . | . . . . Piercing . | . . . . Sneak Attacks . | . . . . Combat Hostiles . | . . . . Follow-up Attacks . | . . . . Damage Inflicted 1397 | . 401 478 518 Guns 1057 | . 396 313 348 Cannons . | . . . . Explosions . | . . . . Melee 335 | . . 165 170 Ramming 5 | . 5 . . Kinetic 891 | . 230 313 348 Thermal 52 | . 52 . . Explosive . | . . . . Electromagnetic 114 | . 114 . . Impact 335 | . . 165 170 Slashing . | . . . . Piercing . | . . . . Highest Corruption . | . . . . Average Corruption . | . . . . Corruption Purged . | . . . . Overload Shots . | . . . . Overflow Damage 17 | . . 16 1 Projectiles . | . . . . Explosions . | . . . . Melee 17 | . . 16 1 Knockbacks 1 | . . 1 . Impact 1 | . . 1 . Kinetic . | . . . . Secondary . | . . . . Self-Inflicted Damage . | . . . . Shots . | . . . . Rammed 1 | . 1 . . Targets Rammed 1 | . 1 . . Kicked . | . . . . Crushed . | . . . . Highest Temperature 171 | . 171 10 26 Average Temperature 34 | . 46 4 12 Received Heat Transfer 780 | . 297 129 354 Siege Activations . | . . . . Robots Corrupted . | . . . . Combat Hostiles . | . . . . Parts Fried 3 | . . 3 . Impact Corruptions 3 | . . 2 1 Robots Melted . | . . . . Combat Hostiles . | . . . . Parts Melted . | . . . . Heat Transferred 148 | . 148 . . Parts Sabotaged . | . . . . Parts Stolen . | . . . . Parts Stripped . | . . . . Power Chain Reactions . | . . . . Missiles Intercepted . | . . . . Alert | -11 -10 -9 -9 ------- Run | Scr Mat Mat Sto Peak Influence 285 | . 232 258 285 Initial 108 | . . 97 108 Average 137 | . 105 137 208 Maximum Alert Level 1 | . 1 1 1 Low Security (%) 82 | . 95 86 41 Level 1 17 | . 4 13 58 Level 2 . | . . . . Level 3 . | . . . . Level 4 . | . . . . Level 5 . | . . . . High Security . | . . . . Max Security . | . . . . Squads Dispatched 2 | . 1 . 1 Investigation 1 | . . . 1 Extermination . | . . . . Reinforcement 1 | . 1 . . Assault . | . . . . Garrison . | . . . . Intercept . | . . . . Construction Impeded . | . . . . Haulers Reinforced . | . . . . Stealth | -11 -10 -9 -9 --------- Run | Scr Mat Mat Sto Distress Signals 3 | . 1 2 . Communications Jammed . | . . . . Distress Signals . | . . . . Times Spotted 46 | . 20 11 15 Peak Tracking Total 7 | . 6 5 7 Tactical Retreats 7 | . 4 2 1 Traps | -11 -10 -9 -9 ------- Run | Scr Mat Mat Sto Traps Triggered 4 | . 3 . 1 Indirectly . | . . . . Trap Hack Attempts . | . . . . Triggered . | . . . . Disarmed . | . . . . Reprogrammed . | . . . . Reused . | . . . . Traps Extracted . | . . . . Installed . | . . . . Triggered . | . . . . Machines | -11 -10 -9 -9 ---------- Run | Scr Mat Mat Sto Machines Disabled . | . . . . Max in Single Turn . | . . . . Machines Sabotaged . | . . . . Garrisons Compromised . | . . . . Overloaded Fab Kills . | . . . . Fab Network Shutdowns . | . . . . Hacking | -11 -10 -9 -9 --------- Run | Scr Mat Mat Sto Machines Accessed 2 | . . 1 1 Terminals 2 | . . 1 1 Fabricators . | . . . . Repair Stations . | . . . . Recycling Units . | . . . . Scanalyzers . | . . . . Garrison Access . | . . . . Total Hacks 2 | . . 1 1 Successful 2 | . . 1 1 Failed . | . . . . Catastrophic . | . . . . Database Lockouts . | . . . . Manual . | . . . . Terminals 2 | . . 1 1 Fabricators . | . . . . Repair Stations . | . . . . Recycling Units . | . . . . Scanalyzers . | . . . . Garrison Access . | . . . . Terminal Hacks 2 | . . 1 1 Open Door 1 | . . . 1 Locate Traps 1 | . . 1 . Fabricator Hacks . | . . . . Repair Station Hacks . | . . . . Recycling Unit Hacks . | . . . . Scanalyzer . | . . . . Garrison Access Hacks . | . . . . Unauthorized Hacks . | . . . . Terminals . | . . . . Fabricators . | . . . . Repair Stations . | . . . . Recycling Units . | . . . . Scanalyzers . | . . . . Garrison Access . | . . . . Data Cores Recovered . | . . . . Used . | . . . . Hacking Detections . | . . . . Full Trace Events . | . . . . Feedback Events . | . . . . Feedback Blocked . | . . . . Robot Schematics Acquired . | . . . . Robots Built . | . . . . Matter . | . . . . Time . | . . . . Total Robot Build Rating . | . . . . Part Schematics Acquired . | . . . . Parts Built . | . . . . Matter . | . . . . Time . | . . . . Total Part Build Rating . | . . . . Parts Repaired . | . . . . Time . | . . . . Parts Recycled . | . . . . Recycled Matter . | . . . . Retrieved Matter . | . . . . Retrieved Components . | . . . . Parts Scanalyzed . | . . . . Part Schematics Acquired . | . . . . Parts Damaged . | . . . . Bothacking | -11 -10 -9 -9 ------------ Run | Scr Mat Mat Sto Used RIF Installer . | . . . . Robots Hacked . | . . . . Non-combat . | . . . . Combat . | . . . . Robot Hacks Applied . | . . . . Relay Couplers Released . | . . . . Robots Rewired . | . . . . Allies Hacked . | . . . . Hacks Repelled . | . . . . Allies | -11 -10 -9 -9 -------- Run | Scr Mat Mat Sto Total Allies . | . . . . Largest Group . | . . . . Highest-Rated Group . | . . . . Highest-Rated Ally . | . . . . Total Orders . | . . . . Ally Attacks . | . . . . Total Damage . | . . . . Kills . | . . . . Allies Corrupted . | . . . . Allies Melted . | . . . . Intel | -11 -10 -9 -9 ------- Run | Scr Mat Mat Sto Robot Analysis Total . | . . . . Derelict Logs Recovered . | . . . . Drone Launches . | . . . . Drone Recoveries . | . . . . Exploration | -11 -10 -9 -9 ------------- Run | Scr Mat Mat Sto Turns Passed 817 | . 331 339 147 Spaces Moved 439 | 1 157 163 118 Core . | . . . . Treads 134 | . 37 97 . Legs 121 | 1 120 . . Wheels . | . . . . Hover 48 | . . 48 . Flight 136 | . . 18 118 Fastest Speed 29 | 120 120 29 29 Average Speed 107 | 120 140 125 39 Slowest Speed 245 | 120 160 245 102 Overloaded Moves . | . . . . Propulsion Burnouts . | . . . . Robots Hopped . | . . . . Cave-ins Triggered . | . . . . Exploration Rate (%) 21 | 1 48 15 21 Regions Visited 3 Branch Regions 1 Pre-discovered Areas . | . . . . Known Exits Taken . | . . . . Unknown Exits Taken 3 | 1 1 1 . Scrap Searched . | . . . . Spaces Dug . | . . . . Terrain Destroyed . | . . . . Melee . | . . . . Projectile . | . . . . AOE . | . . . . Terrain Rammed . | . . . . Walls Destroyed . | . . . . Machines Disabled . | . . . . Actions | -11 -10 -9 -9 --------- Run | Scr Mat Mat Sto Total 646 | . 213 262 171 Wait 47 | . 2 40 5 Move 436 | . 156 162 118 Hop . | . . . . Pick Up 2 | . . 2 . Fast Attach 20 | . 7 10 3 Attach 8 | . 3 2 3 Detach 5 | . . 5 . Swap 4 | . 1 2 1 Drop 12 | . 2 9 1 Fire 91 | . 41 20 30 Melee 20 | . . 10 10 Ram . | . . . . Kick . | . . . . Crush 1 | . 1 . . Escape Stasis . | . . . . Rewire . | . . . . Trap . | . . . . Miscellaneous . | . . . . Route ------- -11/Scrapyard -10/Materials (discovered 2 exits: *Mat / [*Min]) -9/Materials -9/Storage History --------- Turn | Location | Event 1 | -11/Scrapyard | Discovered new exit (range 0) 1 | -11/Scrapyard | Entered Materials 224 | -10/Materials | Discovered new exit (range 12) 288 | -10/Materials | Core integrity fell below 50% 299 | -10/Materials | Lost 3 parts (1p2w) 307 | -10/Materials | Discovered new exit (range 16) 312 | -10/Materials | Build established: Mutant 332 | -10/Materials | Entered another Materials area 332 | -9/Materials | Evolved 2 slots: Power x1, Propulsion x1 637 | -9/Materials | Discovered new exit (range 4) 671 | -9/Materials | Entered Storage 775 | -9/Storage | Core integrity fell below 50% 778 | -9/Storage | Destroyed 7 combat bots 811 | -9/Storage | Core integrity fell below 20% 818 | -9/Storage | Destroyed by G-34 Mercenary with Small Laser Last Messages --------------- 00740_ Dropped Imp. Flight Unit. 00741_ Acquired 13 matter. 00742_ Acquired Imp. Ion Engine. 00744_ Acquired Lgt. Armor Plating. 00749_ Imp. Flight Unit destroyed. 00757_ Y-45 Defender destroyed. 00770_ U-05 Engineer builds a Door. 00772_ Shotgun destroyed. 00772_ Connecting with Door Terminal... 00778_ Lgt. Armor Plating destroyed. 00781_ R-06 Scavenger collects Heat Sink. 00782_ Lgt. Ion Engine destroyed. 00785_ R-06 Scavenger collects Lgt. Treads. 00789_ K-01 Serf cleans the Terminal. 00804_ Imp. Ion Engine destroyed. 00810_ Destroyed Ion Engine. 00810_ G-34 Mercenary system corrupted by crushing effect. 00815_ G-34 Mercenary destroyed. 00817_ K-01 Serf destroyed. 00818_ Acquired 47 matter. Map ----- +----------------------------------------------------+ | ?????????????????????????????????????????????????? | | ?????????????????????????????????????????????????? | | ?????????????????????????????????????????????????? | | ?????????????????????????????????????????????????? | | ?????????????????????????????????????????????????? | | ?????????????????????????????????????????????????? | | ?????????????????????????????????????????????????? | | ?????####????????????????????????????????????????? | | ????? #???????????????????=????????????????????? | | ????? ???????????????????=????????????????????? | | ????" #??????????????????? ????????????????????? | | ????" #??????????????????#/????????????????????? | | ???? #??????????????????# ?#??????????????????? | | ????" #??????????????????# #""?????????????????? | | ???"" #?????????????????## #"Y?????????????????? | | ?#""" #?????????????????# ??????????????????? | | ?# #?????????????????+ ??????????????????? | | ?#""" #?????????????????# ??????????????????? | | ?#""" #???#"##??????????# #??????????????????? | | ?#""" #???# T#??????????# #??????????????????? | | #?? ?####+##??????????# #??????????????????? | | #####+#### #??????????# #??????????????????? | | #??????????# #??????????????????? | | " #??????????# #????????#######???? | | [%"%" ############ g ########## #???? | | ########## r !% !@g k " #???? | | #######??###+############## "T #???? | | ? ??? ???????????# Y #???? | | """ ??? ?????????####+######### #???? | | """ #? ???????????# T#????#####+#####?? | | """ #? = ??????????#"##????# #?? | | # ##?????????????????# "" """ #?? | | """ # """ """ #??????????????????# "Y """ #?? | | ?""" # """ """ #??????????????????# "" """ #?? | | ?""" # """ """?#??????????????????# #?? | | ?? ##?####??????????????????????# !! #?? | | ??###??#?????????????????????????????# !! #?? | | ?????????????????????????????????????# ! ??? | | ?????????????????????????????????????### ######??? | | ???????????????????????????????????????##????????? | | ?????????????????????????????????????????????????? | | ?????????????????????????????????????????????????? | | ?????????????????????????????????????????????????? | | ?????????????????????????????????????????????????? | | | | | | | | | | | | | +----------------------------------------------------+ Best States ------------- Heat Dissipation 28 Energy Generation 19 Energy Capacity 400 Matter Stores 300 Matter Capacity 300 Sight Range 16 Terrain Scan Density 10 ECM Strength 1 Armor Coverage 150 Evasion (%) 64 Recoil Reduction 2 Item Schematics ----------------- None Robot Schematics ------------------ None Fabricated ------------ Nothing Alien Tech Used ----------------- None Achievements -------------- None Challenges ------------ None Game ------ Seed ImprovedMagneticDevice Manual? 0 Play Time 00:19:45 Cumulative 24.2 hours Start 2021.04.14 @ 13:55:45 End 2021.04.14 @ 14:14:06 Sessions 1 Manual Loads 0 Difficulty Rogue Special Mode None Game No. 35 Rogue 20 Adventurer 15 Explorer 0 Win Type - Total 0 Types 0/0/0/0/0/0/0/0/0 Lore% 18 Gallery% 28 Achievement% 19 Wizard Run 0 Options --------- ASCII 0 Keyboard 0 Movement Mouse Keybinds 0 Fullscreen 1 Font 18/SmallcapsGlow Map View 76x50 Tactical HUD 1 Map Filters NONE Filters NONE Steam 1 RUN: 56b4415f-a1f3-4da0-8aa9-db43eeb183f1